Cogmind - Beta 12 *** ADVENTURER MODE // 2023.10.05 @ 22:26:11 // Winter2022/Polymind Player: Daemos Result: Destroyed by G-47 Trooper with Particle Gun Performance ------------- Evolutions (2) 1000 Regions Visited (4) 800 Robots Destroyed (3) 15 Value Destroyed (89) 89 Prototype IDs (1) 20 Alien Tech Used (0) 0 Bonus (2597) 2597 TOTAL SCORE: 4111 Bonus ------- Polymind Skill 2397 Pacifist 200 Cogmind --------- Core Integrity 0/550 Matter 0/0 Energy 171/175 System Corruption 4% Temperature Cool (31) Movement Treading (160) Location -8/Materials Parts ------- > --- POWER (1) -------- Ion Engine > --- PROPULSION (2) --- Light Treads Light Treads > --- UTILITY (3) ------ Medium Storage Unit Weight Redist. System Transport Network Coupler > --- WEAPON (0) ------- (None) > --- INVENTORY (6) ---- Heavy Ion Engine Faulty Heavy Ion Engine Heavy Ion Engine Heavy Ion Engine Heavy Ion Engine Heavy Ion Engine Peak State ------------ > --- POWER ------------ Light Ion Engine > --- PROPULSION ------- Wheel Wheel > --- UTILITY ---------- Improved Terrain Scanner Seismic Detector > --- WEAPON ----------- Mining Laser > --- INVENTORY -------- (None) [Rating: 8] Favorites ----------- Power Light Ion Engine Engine Light Ion Engine Propulsion Wheel Treads Light Treads Leg Aluminum Leg Wheel Wheel Hover Unit Hover Unit Flight Unit Flight Unit Utility Small Storage Unit Device Tractor Beam Storage Small Storage Unit Processor Transport Network Coupler Hackware Hacking Suite Weapon Mining Laser Energy Gun Small Laser Ballistic Gun Light Assault Rifle Special Weapon Mining Laser Special Melee Weapon Datajack Build | -11 -10 -10 -9 -8 ------- Run | Jun Mat Min Mat Mat Slots Evolved . | . . . . . Power . | . . . . . Propulsion . | . . . . . Utility . | . . . . . Weapon . | . . . . . Parts Attached . | . . . . . Power . | . . . . . Engine . | . . . . . Core . | . . . . . Reactor . | . . . . . Propulsion . | . . . . . Treads . | . . . . . Leg . | . . . . . Wheel . | . . . . . Hover . | . . . . . Flight . | . . . . . Utility . | . . . . . Device . | . . . . . Storage . | . . . . . Processor . | . . . . . Hackware . | . . . . . Protection . | . . . . . Artifact . | . . . . . Weapon . | . . . . . Energy Gun . | . . . . . Energy Cannon . | . . . . . Ballistic Gun . | . . . . . Ballistic Cannon . | . . . . . Launcher . | . . . . . Special Weapon . | . . . . . Impact Weapon . | . . . . . Slashing Weapon . | . . . . . Piercing Weapon . | . . . . . Special Melee Weapon . | . . . . . Unidentified Prototypes . | . . . . . Parts Lost 19 | . . . 11 8 Power 5 | . . . 3 2 Propulsion 9 | . . . 5 4 Utility 2 | . . . 1 1 Weapon 3 | . . . 2 1 Highest Loss Streak 11 | . . . 11 5 To Critical Strikes . | . . . . . Average Slot Usage (%) 83 | . 100 100 77 51 Engine 16 | . 19 20 15 10 Leg 1 | . . . 4 . Wheel 26 | . 38 41 22 . Hover 4 | . . . 5 15 Flight 1 | . . . 3 3 Device 10 | . 22 16 1 . Storage 10 | . 16 12 11 . Hackware 3 | . . . 3 13 Ballistic Gun 2 | . . . 6 4 Special Weapon 2 | . 2 8 . . Naked Turns 40 | . 2 . 11 27 Heaviest Build 15 | 9 9 6 7 15 Greatest Support 46 | 32 32 20 20 46 Greatest Overweight (x) 1 | . . . . 1 Average Overweight (x) . | . . . . . Largest Inventory Capacity 6 | 4 4 1 1 6 Average Capacity 1 | 3 3 . . . Most Carried 6 | 4 4 . . 6 Average Carried . | 1 2 . . . Final Capacity 6 | 4 . 1 1 6 Final Carried 6 | 4 . . . 6 Class Distribution -------------------- 24% | Worker 22% | Recycler 18% | Operator 17% | Tunneler 9% | Swarmer 4% | Cogmind Dominant Class ---------------- Recycler | -10/Materials Worker | -10/Mines Worker | -9/Materials Operator | -8/Materials Resources | -11 -10 -10 -9 -8 ----------- Run | Jun Mat Min Mat Mat Matter Collected 10 | . . . 10 . Remotely . | . . . . . Salvage Created 150 | . . . 122 28 Parts 6 | . . . 4 2 Haulers Intercepted . | . . . . . Recyclers Shooed . | . . . . . Parts Field Recycled . | . . . . . Retrieved Matter . | . . . . . Parts Self-Destructed . | . . . . . Prevented . | . . . . . Kills | -11 -10 -10 -9 -8 ------- Run | Jun Mat Min Mat Mat Combat Hostiles Destroyed 3 | . . . 2 1 Melee 1 | . . . . 1 Guns 2 | . . . 2 . Classes Destroyed 3 | . . . 2 1 Swarmer 1 | . . . . 1 Grunt 1 | . . . 1 . Sentry 1 | . . . 1 . Best Kill Streak 2 | . . . 2 1 Combat Bots Only 2 | . . . 2 1 Max Kills in Single Turn 1 | . . . 1 1 Gunslinging . | . . . . . Exploded . | . . . . . Melee 1 | . . . . 1 Uniques/NPCs Destroyed . | . . . . . Combat | -11 -10 -10 -9 -8 -------- Run | Jun Mat Min Mat Mat Damage Taken 1859 | . . . 966 893 Core 932 | . . . 380 552 Absorbed by Shields . | . . . . . Core Remaining (%) 68 | 100 . 100 5 . Volleys Fired 19 | . . 2 17 . Largest 1 | . . 1 1 . Hottest 100 | . . 100 40 . Shots Fired 19 | . . 2 17 . Gun 17 | . . . 17 . Cannon . | . . . . . Launcher . | . . . . . Special 2 | . . 2 . . Kinetic 10 | . . . 10 . Thermal 9 | . . 2 7 . Explosive . | . . . . . Electromagnetic . | . . . . . Robot Hit Streak 6 | . . . 6 . Robot Miss Streak 1 | . . . 1 . Penetration Max . | . . . . . Secondary Targets . | . . . . . Shots Hit Robots 18 | . . . 18 . Core Hits 8 | . . . 6 2 Critical Kills . | . . . . . Critical Parts Destroyed . | . . . . . Critical Strikes . | . . . . . Melee Attacks 4 | . . . 4 . Impact . | . . . . . Slashing . | . . . . . Piercing . | . . . . . Sneak Attacks 3 | . . . 3 . Combat Hostiles . | . . . . . Follow-up Attacks . | . . . . . Damage Inflicted 187 | . . . 140 47 Guns 140 | . . . 140 . Cannons . | . . . . . Explosions . | . . . . . Melee . | . . . . . Ramming 47 | . . . . 47 Kinetic 72 | . . . 72 . Thermal 68 | . . . 68 . Explosive . | . . . . . Electromagnetic . | . . . . . Impact . | . . . . . Slashing . | . . . . . Piercing . | . . . . . Highest Corruption 4 | . . . . 4 Average Corruption 4 | . . . . 4 Corruption Purged . | . . . . . Corruption Blocked . | . . . . . Effects 1 | . . . . 1 Data Loss (major) 1 | . . . . 1 Overload Shots . | . . . . . Overflow Damage . | . . . . . Projectiles . | . . . . . Explosions . | . . . . . Melee . | . . . . . Knockbacks . | . . . . . Impact . | . . . . . Kinetic . | . . . . . Secondary . | . . . . . Self-Inflicted Damage 21 | . . . . 21 Shots . | . . . . . Rammed 11 | . . . . 11 Targets Rammed 11 | . . . . 11 Kicked . | . . . . . Crushed . | . . . . . Highest Temperature 184 | . . 155 184 25 Average Temperature 50 | . . 79 40 8 Received Heat Transfer 786 | . . . 543 243 Siege Activations . | . . . . . Robots Corrupted . | . . . . . Combat Hostiles . | . . . . . Parts Fried . | . . . . . Impact Corruptions . | . . . . . Robots Melted . | . . . . . Combat Hostiles . | . . . . . Parts Melted . | . . . . . Heat Transferred 150 | . . . 150 . Parts Sabotaged . | . . . . . Parts Stolen . | . . . . . Parts Stripped . | . . . . . Power Chain Reactions . | . . . . . Missiles Intercepted . | . . . . . Alert | -11 -10 -10 -9 -8 ------- Run | Jun Mat Min Mat Mat Peak Influence 165 | . . 1 124 165 Initial 44 | . . . . 44 Average 22 | . . . 32 69 Maximum Alert Level . | . . . . . Low Security (%) 100 | 100 100 100 100 100 Level 1 . | . . . . . Level 2 . | . . . . . Level 3 . | . . . . . Level 4 . | . . . . . Level 5 . | . . . . . High Security . | . . . . . Max Security . | . . . . . Squads Dispatched 2 | . . . . 2 Investigation . | . . . . . Extermination . | . . . . . Reinforcement 2 | . . . . 2 Assault . | . . . . . Garrison . | . . . . . Intercept . | . . . . . Searches Triggered . | . . . . . Construction Impeded . | . . . . . Haulers Reinforced . | . . . . . Active Scanning Responses . | . . . . . Cargo Convoy Interrupts . | . . . . . Stealth | -11 -10 -10 -9 -8 --------- Run | Jun Mat Min Mat Mat Distress Signals 5 | . . . . 5 Communications Jammed . | . . . . . Distress Signals . | . . . . . Times Spotted 91 | . . . 47 44 Peak Tracking Total 27 | . . . 14 27 Tactical Retreats 3 | . . . 1 2 Traps | -11 -10 -10 -9 -8 ------- Run | Jun Mat Min Mat Mat Traps Triggered . | . . . . . Indirectly . | . . . . . Trap Hack Attempts . | . . . . . Triggered . | . . . . . Disarmed . | . . . . . Reprogrammed . | . . . . . Reused . | . . . . . Traps Extracted . | . . . . . Installed . | . . . . . Triggered . | . . . . . Machines | -11 -10 -10 -9 -8 ---------- Run | Jun Mat Min Mat Mat Machines Disabled . | . . . . . Max in Single Turn . | . . . . . Machines Repaired . | . . . . . Machines Sabotaged . | . . . . . Overloaded Fab Kills . | . . . . . Hacking | -11 -10 -10 -9 -8 --------- Run | Jun Mat Min Mat Mat Machines Accessed 3 | . . . 1 2 Terminals 2 | . . . 1 1 Fabricators . | . . . . . Repair Stations . | . . . . . Recycling Units . | . . . . . Scanalyzers 1 | . . . . 1 Garrison Access . | . . . . . Total Hacks 9 | . . . 2 7 Successful 3 | . . . 1 2 Failed 6 | . . . 1 5 Catastrophic . | . . . . . Database Lockouts . | . . . . . Manual 9 | . . . 3 6 Terminals 8 | . . . 2 6 Fabricators . | . . . . . Repair Stations . | . . . . . Recycling Units . | . . . . . Scanalyzers 1 | . . . . 1 Garrison Access . | . . . . . Terminal Hacks 2 | . . . . 2 Alert Level 1 | . . . . 1 Unreport Threat 1 | . . . . 1 Fabricator Hacks . | . . . . . Repair Station Hacks . | . . . . . Recycling Unit Hacks . | . . . . . Scanalyzer . | . . . . . Garrison Access Hacks . | . . . . . Unauthorized Hacks 1 | . . . 1 . Terminals 1 | . . . 1 . Botnet 1 | . . . 1 . Fabricators . | . . . . . Repair Stations . | . . . . . Recycling Units . | . . . . . Scanalyzers . | . . . . . Garrison Access . | . . . . . Data Cores Recovered . | . . . . . Used . | . . . . . Hacking Detections 2 | . . . 1 1 Full Trace Events . | . . . . . Feedback Events . | . . . . . Feedback Blocked . | . . . . . Robot Schematics Acquired . | . . . . . Robots Built . | . . . . . Authchips . | . . . . . Time . | . . . . . Total Robot Build Rating . | . . . . . Part Schematics Acquired . | . . . . . Parts Built . | . . . . . Authchips . | . . . . . Time . | . . . . . Total Part Build Rating . | . . . . . Parts Repaired . | . . . . . Time . | . . . . . Parts Recycled . | . . . . . Recycled Matter . | . . . . . Retrieved Matter . | . . . . . Retrieved Components . | . . . . . Parts Scanalyzed . | . . . . . Part Schematics Acquired . | . . . . . Parts Damaged . | . . . . . Bothacking | -11 -10 -10 -9 -8 ------------ Run | Jun Mat Min Mat Mat Used RIF Installer . | . . . . . Robots Hacked 9 | . . . 7 2 Non-combat 5 | . . . 4 1 Combat 4 | . . . 3 1 Robot Hacks Applied 11 | . . . 8 3 parse_system 2 | . . . 2 . no_distress 2 | . . . 2 . locate_stockpiles 1 | . . . . 1 find_terminals 2 | . . . 2 . find_shortcuts 3 | . . . 2 1 find_garrison 1 | . . . . 1 Relay Couplers Released . | . . . . . Fabnet Peak Effective % . | . . . . . Robots Rewired . | . . . . . Allies Hacked . | . . . . . Hacks Repelled . | . . . . . Allies | -11 -10 -10 -9 -8 -------- Run | Jun Mat Min Mat Mat Total Allies . | . . . . . Largest Group . | . . . . . Highest-Rated Group . | . . . . . Highest-Rated Ally . | . . . . . Total Orders . | . . . . . Ally Attacks . | . . . . . Total Damage . | . . . . . Kills . | . . . . . Allies Corrupted . | . . . . . Allies Melted . | . . . . . Intel | -11 -10 -10 -9 -8 ------- Run | Jun Mat Min Mat Mat Robot Analysis Total 7 | 1 1 1 3 1 Derelict Logs Recovered 1 | . . 1 . . Drone Launches . | . . . . . Drone Recoveries . | . . . . . Exploration | -11 -10 -10 -9 -8 ------------- Run | Jun Mat Min Mat Mat Turns Passed 1011 | 41 274 242 246 208 Spaces Moved 1291 | 43 277 293 324 354 Core 233 | 11 2 1 42 177 Treads 4 | . . . . 4 Legs 11 | . . . 11 . Wheels 734 | 32 275 292 135 . Hover 176 | . . . 56 120 Flight 133 | . . . 80 53 Fastest Speed 37 | 50 50 50 37 37 Average Speed 71 | 87 95 79 63 51 Slowest Speed 160 | 100 100 80 120 160 Overloaded Moves . | . . . . . Propulsion Burnouts . | . . . . . Robots Hopped 7 | . . . 4 3 Cave-ins Triggered . | . . . . . Exploration Rate (%) 36 | 3 55 61 24 41 Regions Visited 4 Branch Regions 1 Pre-discovered Areas . | . . . . . Known Exits Taken . | . . . . . Unknown Exits Taken 4 | 1 1 1 1 . Scrap Searched . | . . . . . Spaces Dug 2 | . . 2 . . Terrain Destroyed 2 | . . 2 . . Melee . | . . . . . Projectile 2 | . . 2 . . AOE . | . . . . . Terrain Rammed . | . . . . . Walls Destroyed . | . . . . . Machines Disabled . | . . . . . Actions | -11 -10 -10 -9 -8 --------- Run | Jun Mat Min Mat Mat Total 1345 | 46 287 294 342 376 Wait 17 | . 1 . 2 14 Move 1274 | 42 276 292 316 348 Hop 6 | . . . 3 3 Pick Up 7 | 4 3 . . . Fast Attach . | . . . . . Attach . | . . . . . Detach . | . . . . . Swap . | . . . . . Drop . | . . . . . Fire 19 | . . 2 17 . Melee 4 | . . . 4 . Ram 11 | . . . . 11 Kick . | . . . . . Crush . | . . . . . Escape Stasis . | . . . . . Rewire . | . . . . . Trap . | . . . . . Miscellaneous 7 | . 7 . . . Route ------- -11/Junkyard -10/Materials (discovered 4 exits: *Mat x2 / [*Min x2]) -10/Mines -9/Materials (discovered 2 exits: *Mat / Min) -8/Materials (discovered 1 exit: [*Sto]) History --------- Turn | Location | Event 3 | -11/Junkyard | Discovered new exit (range 15) 42 | -11/Junkyard | Entered Materials 115 | -10/Materials | Discovered new exit (range 8) 163 | -10/Materials | Discovered new exit (range 3) 232 | -10/Materials | Discovered new exit (range 10) 305 | -10/Materials | Discovered new exit (range 14) 316 | -10/Materials | Entered Mines 358 | -10/Mines | Learned location of 1 exit from Materials 553 | -10/Mines | Discovered new exit (range 6) 558 | -10/Mines | Entered Materials 559 | -9/Materials | Identified exit to Mines 721 | -9/Materials | Core integrity fell below 50% 783 | -9/Materials | Core integrity fell below 20% 798 | -9/Materials | Discovered new exit (range 10) 804 | -9/Materials | Entered another Materials area 828 | -8/Materials | Lost 11 parts (3p5n1u2w) 911 | -8/Materials | Lost 3 parts (1p2n) 941 | -8/Materials | Core integrity fell below 50% 972 | -8/Materials | Discovered new exit (range 4) 989 | -8/Materials | Core integrity fell below 20% 1012 | -8/Materials | Lost 5 parts (1p2n1u1w) 1012 | -8/Materials | Destroyed by G-47 Trooper with Particle Gun Last Messages --------------- O-16 Technician: "IFF HANDSHAKE FAILED. SECURING TERMINAL." Slug penetrates Terminal. Terminal disabled. K-01 Serf collects debris. Penetrated by Slug. Flight Unit destroyed. Protomatter-4 decays. K-01 Serf collects debris. Lgt. Ion Engine destroyed. EXIT=FOUND K-01 Serf collects debris. W-25 Informer distress signal alerts nearby ally. Lgt. Assault Rifle destroyed. Lost control of S-10 Pest. W-25 Informer distress signal alerts nearby ally. K-01 Serf collects debris. O-16 Technician: "IFF HANDSHAKE FAILED. SECURING TERMINAL." Took control of A-02 Transporter. Extracted analysis data for A-02 Transporter. ALERT: Hostiles spotted, dispatching reinforcements to Terminal M002. Map ----- +----------------------------------------------------+ | #?????????????????????????????? | | #?????????????????????????????? | | =##+#########??????????????????? | | ## # #??????????????????? | | ## # #??????????????????? | | ### # """ #??????????????????? | | ### # """ #??????????????????? | | # """ #??????????????????? | | + #??????????????????? | | # """ #??????????????????? | | ##### """ #??????????????????? | | ????# """ #??????????????????? | | ????# #??????????????????? | | ????# #????????? ??????? | | ????#########????????# ??????? | | ?????????????????????# ??????? | | ##########???????????# #?????? | | #????????#+## #?????? | | ######## #????????# #?????? | | ???????# #????????# #?????? | | ???????# #????????# #??#### | | ???????# #????????# #? # | | ???????# #??????### #?!!! # | | ???????# #??????# # !! # | | ???????# #??????# # !! # | | ???????# #??????+ a # | | ???????# #??????# ag # # | | ???????# #??????# g s # # | | ???#####/######### gs ######? | | ???# #ss #???? | | ???# """ """ """ g g #???? | | ???# """ """ """ # #???? | | ???# """ """ """ # #???? | | ???# # #???? | | ???# = # ##???? | | ???############### #????? | | ?????????????????# #????? | | ?????????????????# #????? | | ?????????????????# ???? | | ?????????????????# !??? | | ?????????????????+ [[?? | | ?????????????????# [[?? | | ?????????????????# ==?? | | ????????????????? ???? | | ?????????????????? ?????? | | ?????????????????? ????????? | | ?????????????????? ??????????? | | ???????????????????????????????? | | ???????????????????????????????? | | ???????????????????????????????? | +----------------------------------------------------+ Best States ------------- Heat Dissipation 25 Energy Generation 15 Energy Capacity 200 Matter Stores 100 Matter Capacity 100 Sight Range 16 Terrain Scan Range 16 Terrain Scan Density 10 Additional Mass Support 6 Resistance: KI 20 Resistance: TH 20 Resistance: EX 20 Resistance: EM 20 Resistance: I 20 Resistance: S 20 Resistance: P 20 Evasion (%) 62 Recoil Reduction 2 Offensive Hacking 20 Item Schematics ----------------- None Robot Schematics ------------------ None Fabricated ------------ Nothing Alien Tech Used ----------------- None Achievements -------------- None Challenges ------------ None Polymind | -11 -10 -10 -9 -8 ---------- Run | Jun Mat Min Mat Mat Hosts 9 | 1 1 1 4 2 Combat Hostiles 3 | . . . 2 1 Allies . | . . . . . Unique Host Classes 7 | 1 1 1 3 1 Average Host Suspicion 57 | 5 31 61 64 91 Unsuspicious Activity 236 | 2 37 125 62 10 Returns to Shadow . | . . . . . Fuzzy Dispatches . | . . . . . Protomatter Created 34 | . . . 30 4 Used 57 | 5 5 5 31 11 Decayed 15 | . . . 11 4 Highest Spend 15 | 5 5 5 15 6 Top 5 Hosts by Kills: S-10 Pest (-9/Materials: 2) O-16 Technician (-9/Materials: 1) Game ------ Seed takeseed Manual? 1 Play Time 00:12:55 Cumulative 98.5 hours Start 2023.10.05 @ 22:13:09 End 2023.10.05 @ 22:26:11 Sessions 1 Manual Loads 0 Difficulty Adventurer Special Mode Winter2022/Polymind Game No. 21 Rogue 0 Adventurer 21 Explorer 0 Win Type - Total 2 Types 1/0/1/0/0/0/0/0/0 Lore% 46 Gallery% 58 Achievement% 51 Wizard Run 0 Options --------- ASCII 0 Keyboard 0 Movement Numpad Keybinds 0 Fullscreen 2 Font 24/Smallcaps Map View 76x50 Tactical HUD 0 Map Filters NONE Filters NONE Steam 1 RUN: 69eaf6c1-07ff-4c74-b0ee-800b83d5e790